lending/lending_fUSD_20241115
["ID","MTS","AMOUNT","RATE_DAILY","PERIOD"]
[342269154,1731689445760,-1234.72,9.898e-05,2]
[342269155,1731689445770,-2569.23,9.898e-05,2]
[342269156,1731689445780,-1234.72,9.898e-05,2]
[342269158,1731689445790,-2569.23,9.898e-05,2]
[342269160,1731689445800,-500.0,9.898e-05,2]
[342269161,1731689445810,-500.0,9.898e-05,2]
[342269162,1731689445819,-500.0,9.898e-05,2]
[342269163,1731689445829,-2467.96,9.898e-05,2]
[342269164,1731689445839,-500.0,9.898e-05,2]
[342269165,1731689445849,-500.0,9.898e-05,2]
[342269168,1731689445859,-500.0,9.898e-05,2]
[342269170,1731689445869,-2467.96,9.898e-05,2]
[342269172,1731689445879,-500.0,9.898e-05,2]
[342269174,1731689445889,-1505.6,9.898e-05,2]
[342269176,1731689445902,-1505.6,9.898e-05,2]
[342269178,1731689445912,-500.0,9.898e-05,2]
[342269181,1731689445922,-500.0,9.898e-05,2]
[342269183,1731689445932,-500.0,9.898e-05,2]
[342269185,1731689445942,-1390.89,9.898e-05,2]
[342269187,1731689445951,-1390.89,9.898e-05,2]
[342269189,1731689445961,-500.0,9.898e-05,2]
[342269191,1731689445972,-500.0,9.898e-05,2]
[342269194,1731689445982,-1774.96,9.898e-05,2]
[342269196,1731689445992,-500.0,9.898e-05,2]
[342269198,1731689446002,-500.0,9.898e-05,2]
[342269200,1731689446012,-1774.96,9.898e-05,2]
[342269201,1731689446021,-500.0,9.898e-05,2]
[342269202,1731689446030,-500.0,9.898e-05,2]
[342269203,1731689446040,-500.0,9.898e-05,2]
[342269204,1731689446049,-500.0,9.898e-05,2]
[342269205,1731689446059,-883.02,9.898e-05,2]
[342269206,1731689446069,-3044.76,9.898e-05,2]
[342269207,1731689446078,-829.46,9.898e-05,2]
[342269208,1731689446088,-829.46,9.898e-05,2]
[342269209,1731689446098,-1259.43,9.898e-05,2]
[342269210,1731689446108,-500.0,9.898e-05,2]
[342269211,1731689446117,-1259.43,9.898e-05,2]
[342269212,1731689446127,-500.0,9.898e-05,2]
[342269213,1731689446136,-5597.38,9.898e-05,2]
[342269214,1731689446147,-500.0,9.898e-05,2]
[342269215,1731689446162,-500.0,9.898e-05,2]
[342269216,1731689446171,-500.0,9.898e-05,2]
[342269217,1731689446181,-603.77,9.898e-05,2]
[342269218,1731689446191,-3044.76,9.898e-05,2]
[342269219,1731689446201,-603.77,9.898e-05,2]
[342269220,1731689446210,-500.0,9.898e-05,2]
[342269221,1731689446220,-500.0,9.898e-05,2]
[342269222,1731689446229,-1941.97,9.898e-05,2]
[342269223,1731689446239,-1941.97,9.898e-05,2]
[342269224,1731689446249,-500.0,9.898e-05,2]
[342269225,1731689446260,-8148.24,9.898e-05,2]
[342269226,1731689446270,-1692.68,9.898e-05,2]
[342269227,1731689446281,-912.98,9.898e-05,2]
[342269228,1731689446290,-8148.24,9.898e-05,2]
[342269229,1731689446300,-1692.68,9.898e-05,2]
[342269230,1731689446310,-912.98,9.898e-05,2]
[342269231,1731689446319,-500.0,9.898e-05,2]
[342269232,1731689446329,-5177.12,9.898e-05,2]
[342269233,1731689446339,-1132.37,9.898e-05,2]
[342269234,1731689446348,-1132.37,9.898e-05,2]
[342269235,1731689446358,-500.0,9.898e-05,2]
[342269236,1731689446367,-500.0,9.898e-05,2]
[342269237,1731689446377,-500.0,9.898e-05,2]
[342269238,1731689446388,-1107.13,9.898e-05,2]
[342269239,1731689446400,-878.76,9.898e-05,2]
[342269240,1731689446410,-878.76,9.898e-05,2]
[342269241,1731689446421,-1393.9,9.898e-05,2]
[342269242,1731689446431,-1393.9,9.898e-05,2]
[342269243,1731689446445,-2122.63,9.898e-05,2]
[342269244,1731689446455,-500.0,9.898e-05,2]
[342269245,1731689446465,-500.0,9.898e-05,2]
[342269246,1731689446475,-500.0,9.898e-05,2]
[342269247,1731689446485,-500.0,9.898e-05,2]
[342269248,1731689446495,-500.0,9.898e-05,2]
[342269249,1731689446505,-1647.9,9.898e-05,2]
[342269250,1731689446516,-1647.9,9.898e-05,2]
[342269251,1731689446525,-1766.82,9.898e-05,2]
[342269252,1731689446535,-516.86,9.898e-05,2]
[342269253,1731689446546,-1766.82,9.898e-05,2]
[342269254,1731689446555,-1674.65,9.898e-05,2]
[342269255,1731689446566,-1674.65,9.898e-05,2]
[342269256,1731689446576,-1213.05,9.898e-05,2]
[342269257,1731689446586,-1667.36,9.898e-05,2]
[342269258,1731689446598,-1213.05,9.898e-05,2]
[342269259,1731689446609,-1667.36,9.898e-05,2]
[342269260,1731689446619,-1789.03,9.898e-05,2]
[342269261,1731689446628,-1789.03,9.898e-05,2]
[342269262,1731689446729,-500.0,9.898e-05,2]
[342269263,1731689446739,-500.0,9.898e-05,2]
[342269264,1731689446750,-2717.71,9.898e-05,2]
[342269265,1731689446760,-1265.06,9.898e-05,2]
[342269266,1731689446770,-1265.06,9.898e-05,2]
[342269267,1731689446780,-500.0,9.898e-05,2]
[342269268,1731689446789,-500.0,9.898e-05,2]
[342269269,1731689446799,-8622.02,9.898e-05,2]
[342269270,1731689446808,-8622.02,9.898e-05,2]
[342269271,1731689446817,-500.0,9.898e-05,2]
[342269272,1731689446827,-535.23,9.898e-05,2]
[342269273,1731689446836,-7987.11,9.898e-05,2]
[342269274,1731689446846,-535.23,9.898e-05,2]
[342269275,1731689446856,-500.0,9.898e-05,2]
[342269276,1731689446865,-500.0,9.898e-05,2]
[342269277,1731689446874,-2052.01,9.898e-05,2]
[342269278,1731689446884,-2052.01,9.898e-05,2]
[342269279,1731689446893,-2143.12,9.898e-05,2]
[342269280,1731689446907,-2143.12,9.898e-05,2]
[342269281,1731689446917,-4149.75,9.898e-05,2]
[342269282,1731689446928,-1177.13,9.898e-05,2]
[342269283,1731689446937,-500.0,9.898e-05,2]
[342269284,1731689446946,-1065.09,9.898e-05,2]
[342269285,1731689446956,-1177.13,9.898e-05,2]
[342269286,1731689446965,-500.0,9.898e-05,2]
[342269287,1731689446975,-1065.09,9.898e-05,2]
[342269288,1731689446984,-16470.0,9.898e-05,2]
[342269289,1731689446994,-500.0,9.898e-05,2]
[342269290,1731689447004,-500.0,9.898e-05,2]
[342269291,1731689447013,-13245.0,9.898e-05,2]
[342269292,1731689447023,-2630.99,9.898e-05,2]
[342269293,1731689447032,-2630.99,9.898e-05,2]
[342269294,1731689447042,-500.0,9.898e-05,2]
[342269295,1731689447052,-500.0,9.898e-05,2]
[342269296,1731689447062,-500.0,9.898e-05,2]
[342269297,1731689447071,-500.0,9.898e-05,2]
[342269298,1731689447081,-500.0,9.898e-05,2]
[342269299,1731689447091,-500.0,9.898e-05,2]
[342269300,1731689447100,-500.0,9.898e-05,2]
[342269301,1731689447109,-1039.74,9.898e-05,2]
[342269302,1731689447119,-500.0,9.898e-05,2]
[342269303,1731689447128,-1039.74,9.898e-05,2]
[342269304,1731689447138,-500.0,9.898e-05,2]
[342269305,1731689447151,-1645.12,9.898e-05,2]
[342269306,1731689447161,-5318.83,9.898e-05,2]
[342269307,1731689447171,-5318.83,9.898e-05,2]
[342269308,1731689447183,-500.0,9.898e-05,2]
[342269309,1731689447193,-500.0,9.898e-05,2]
[342269310,1731689447203,-500.0,9.898e-05,2]
[342269311,1731689447212,-1710.53,9.898e-05,2]
[342269312,1731689447221,-500.0,9.898e-05,2]
[342269313,1731689447231,-18048.89,9.898e-05,2]
[342269314,1731689447240,-863.27,9.898e-05,2]
[342269315,1731689447249,-500.0,9.898e-05,2]
[342269316,1731689447259,-18048.89,9.898e-05,2]
[342269317,1731689447268,-863.27,9.898e-05,2]
[342269318,1731689447278,-500.0,9.898e-05,2]
[342269319,1731689447287,-1018.92,9.898e-05,2]
[342269320,1731689447296,-896.66,9.898e-05,2]
[342269321,1731689447306,-500.9164638,9.898e-05,2]
[342269322,1731689447316,-2576.99,9.898e-05,2]
[342269323,1731689447326,-1013.26,9.898e-05,2]
[342269324,1731689447337,-1018.92,9.898e-05,2]
[342269325,1731689447347,-1013.26,9.898e-05,2]
[342269326,1731689447356,-2051.34,9.898e-05,2]
[342269327,1731689447366,-2051.34,9.898e-05,2]
[342269328,1731689447376,-500.0,9.898e-05,2]
[342269329,1731689447386,-2915.21,9.898e-05,2]
[342269330,1731689447399,-1097.77,9.898e-05,2]
[342269331,1731689447409,-2915.21,9.898e-05,2]
[342269332,1731689447419,-500.0,9.898e-05,2]
[342269333,1731689447428,-500.0,9.898e-05,2]
[342269334,1731689447440,-2913.84,9.898e-05,2]
[342269335,1731689447450,-2913.84,9.898e-05,2]
[342269336,1731689447459,-500.35059196,9.898e-05,2]
[342269337,1731689447468,-500.0,9.898e-05,2]
[342269338,1731689447479,-500.0,9.898e-05,2]
[342269339,1731689447488,-500.0,9.898e-05,2]
[342269340,1731689447497,-500.0,9.898e-05,2]
[342269341,1731689447506,-500.0,9.898e-05,2]
[342269342,1731689447516,-500.0,9.898e-05,2]
[342269343,1731689447525,-510.65318801,9.898e-05,2]
[342269344,1731689447534,-1136.79,9.898e-05,2]
[342269345,1731689447544,-1136.79,9.898e-05,2]
[342269346,1731689447554,-1470.32,9.898e-05,2]
[342269347,1731689447563,-500.0,9.898e-05,2]
[342269348,1731689447573,-1470.32,9.898e-05,2]
[342269349,1731689447584,-1322.64,9.898e-05,2]
[342269350,1731689447593,-1322.64,9.898e-05,2]
[342269351,1731689447603,-500.0,9.898e-05,2]
[342269352,1731689447612,-500.0,9.898e-05,2]
[342269353,1731689447621,-500.0,9.898e-05,2]
[342269354,1731689447631,-17890.25,9.898e-05,2]
[342269355,1731689447640,-777.57,9.898e-05,2]
[342269356,1731689447653,-777.57,9.898e-05,2]
[342269357,1731689447663,-500.0,9.898e-05,2]
[342269358,1731689447672,-500.0,9.898e-05,2]
[342269359,1731689447682,-500.0,9.898e-05,2]
[342269360,1731689447691,-500.0,9.898e-05,2]
[342269361,1731689447701,-44662.95,9.898e-05,2]
[342269362,1731689447710,-500.0,9.898e-05,2]
[342269363,1731689447720,-500.0,9.898e-05,2]
[342269364,1731689447729,-536.58,9.898e-05,2]
[342269365,1731689447738,-536.58,9.898e-05,2]
[342269366,1731689447747,-599.5,9.898e-05,2]
[342269367,1731689447756,-599.5,9.898e-05,2]
[342269368,1731689447765,-1591.54,9.898e-05,2]
[342269369,1731689447775,-597.04,9.898e-05,2]
[342269370,1731689447784,-597.04,9.898e-05,2]
[342269371,1731689447797,-1591.54,9.898e-05,2]
[342269372,1731689447808,-500.0,9.898e-05,2]
[342269373,1731689447818,-500.0,9.898e-05,2]
[342269374,1731689447827,-5772.3,9.898e-05,2]
[342269375,1731689447836,-5772.3,9.898e-05,2]
[342269376,1731689447846,-2179.86,9.898e-05,2]
[342269377,1731689447856,-2179.86,9.898e-05,2]
[342269378,1731689447866,-500.0,9.898e-05,2]
[342269379,1731689447875,-500.0,9.898e-05,2]
[342269380,1731689447885,-1800.39,9.898e-05,2]
[342269381,1731689447894,-500.0,9.898e-05,2]
[342269382,1731689447907,-500.0,9.898e-05,2]
[342269383,1731689447917,-500.0,9.898e-05,2]
[342269384,1731689447926,-1215.88,9.898e-05,2]
[342269385,1731689447935,-1797.79,9.898e-05,2]
[342269386,1731689447945,-1215.88,9.898e-05,2]
[342269387,1731689447955,-1797.79,9.898e-05,2]
[342269388,1731689447964,-3148.44,9.898e-05,2]
[342269389,1731689447973,-898.45,9.898e-05,2]
[342269390,1731689447983,-3148.44,9.898e-05,2]
[342269391,1731689447992,-8072.53,9.898e-05,2]
[342269392,1731689448002,-898.45,9.898e-05,2]
[342269393,1731689448011,-4103.69,9.898e-05,2]
[342269394,1731689448021,-4103.69,9.898e-05,2]
[342269395,1731689448031,-500.0,9.898e-05,2]
[342269396,1731689448041,-1363.9,9.898e-05,2]
[342269397,1731689448051,-605.55,9.898e-05,2]
[342269398,1731689448061,-605.55,9.898e-05,2]
[342269399,1731689448070,-1363.9,9.898e-05,2]
[342269400,1731689448079,-500.0,9.898e-05,2]
[342269401,1731689448089,-500.0,9.898e-05,2]
[342269402,1731689448099,-7700.31,9.898e-05,2]
[342269403,1731689448109,-500.0,9.898e-05,2]
[342269404,1731689448118,-500.0,9.898e-05,2]
[342269405,1731689448127,-1353.43,9.898e-05,2]
[342269406,1731689448136,-7238.35,9.898e-05,2]
[342269407,1731689448145,-1353.43,9.898e-05,2]
[342269408,1731689448157,-7238.35,9.898e-05,2]
[342269409,1731689448166,-500.0,9.899e-05,2]
[342269410,1731689448175,-500.0,9.899e-05,2]
[342269411,1731689448184,-500.0,9.899e-05,2]
[342269412,1731689448194,-659.4,9.899e-05,2]
[342269413,1731689448203,-500.0,9.899e-05,2]
[342269414,1731689448212,-925.22,9.899e-05,2]
[342269415,1731689448222,-773.12,9.899e-05,2]
[342269416,1731689448231,-500.0,9.899e-05,2]
[342269417,1731689448240,-1409.83,9.899e-05,2]
[342269418,1731689448250,-503.07,9.899e-05,2]
[342269419,1731689448260,-500.0,9.899e-05,2]
[342269420,1731689448270,-500.0,9.899e-05,2]
[342269421,1731689448279,-500.0,9.899e-05,2]
[342269422,1731689448289,-500.0,9.899e-05,2]
[342269423,1731689448298,-500.0,9.899e-05,2]
[342269424,1731689448308,-500.0,9.899e-05,2]
[342269425,1731689448317,-500.0,9.899e-05,2]
[342269426,1731689448327,-566.6,9.899e-05,2]
[342269427,1731689448337,-713.1,9.899e-05,2]
[342269428,1731689448347,-500.0,9.899e-05,2]
[342269429,1731689448356,-1735.44,9.899e-05,2]
[342269430,1731689448366,-500.0,9.899e-05,2]
[342269431,1731689448374,-501.73,9.899e-05,2]
[342269432,1731689448383,-500.0,9.899e-05,2]
[342269433,1731689448393,-500.0,9.899e-05,2]
[342269434,1731689448406,-588.34136523,9.899e-05,2]
[342269435,1731689448415,-1132.0,9.899e-05,2]
[342269436,1731689448425,-500.0,9.899e-05,2]
[342269437,1731689448436,-500.0,9.899e-05,2]
[342269438,1731689448447,-1039.84,9.899e-05,2]
[342269439,1731689448456,-1126.33,9.899e-05,2]
[342269440,1731689448466,-500.0,9.899e-05,2]
[342269441,1731689448475,-500.0,9.899e-05,2]
[342269442,1731689448486,-500.0,9.899e-05,2]
[342269443,1731689448495,-1678.07,9.899e-05,2]
[342269444,1731689448504,-2058.27,9.899e-05,2]
[342269445,1731689448516,-590.93,9.899e-05,2]
[342269446,1731689448525,-1084.58,9.899e-05,2]
[342269447,1731689448535,-1010.27,9.899e-05,2]
[342269448,1731689448544,-645.85,9.899e-05,2]
[342269449,1731689448554,-3668.25,9.899e-05,2]
[342269450,1731689448563,-1141.62,9.899e-05,2]
[342269451,1731689448573,-1865.7,9.899e-05,2]
[342269452,1731689448583,-1516.64,9.899e-05,2]
[342269453,1731689448592,-500.0,9.899e-05,2]
[342269454,1731689448602,-517.86,9.899e-05,2]
[342269455,1731689448613,-1939.81,9.899e-05,2]
[342269456,1731689448622,-3206.26,9.899e-05,2]
[342269457,1731689448632,-500.0,9.899e-05,2]
[342269458,1731689448641,-500.0,9.899e-05,2]
[342269459,1731689448652,-880.14,9.899e-05,2]
[342269460,1731689448662,-512.05306899,9.899e-05,2]
[342269461,1731689448670,-823.1,9.899e-05,2]
[342269462,1731689448680,-778.19,9.899e-05,2]
[342269463,1731689448689,-741.79,9.899e-05,2]
[342269464,1731689448699,-500.0,9.899e-05,2]
[342269465,1731689448709,-1014.28,9.899e-05,2]
[342269466,1731689448719,-516.53239112,9.899e-05,2]
[342269467,1731689448729,-500.0,9.899e-05,2]
[342269468,1731689448739,-544.6,9.899e-05,2]
[342269469,1731689448749,-773.41,9.899e-05,2]
[342269470,1731689448758,-500.0,9.899e-05,2]
[342269471,1731689448770,-1544.58,9.899e-05,2]
[342269472,1731689448780,-2364.14,9.899e-05,2]
[342269473,1731689448789,-500.0,9.899e-05,2]
[342269474,1731689448799,-769.74,9.899e-05,2]
[342269475,1731689448808,-520.65,9.899e-05,2]
[342269476,1731689448818,-500.0,9.899e-05,2]
[342269477,1731689448828,-500.0,9.899e-05,2]
[342269478,1731689448838,-500.0,9.899e-05,2]
[342269479,1731689448848,-500.0,9.899e-05,2]
[342269480,1731689448858,-574.62,9.899e-05,2]
[342269481,1731689448867,-1812.09,9.899e-05,2]
[342269482,1731689448877,-1826.97,9.899e-05,2]
[342269483,1731689448887,-712.71,9.899e-05,2]
[342269484,1731689448897,-1487.13,9.899e-05,2]
[342269485,1731689448908,-500.0,9.899e-05,2]
[342269486,1731689448919,-500.0,9.899e-05,2]
[342269487,1731689448929,-1372.91,9.899e-05,2]
[342269488,1731689448938,-500.0,9.899e-05,2]
[342269489,1731689448948,-500.0,9.899e-05,2]
[342269490,1731689448958,-500.0,9.899e-05,2]
[342269491,1731689448967,-1012.41,9.899e-05,2]
[342269492,1731689448977,-500.0,9.899e-05,2]
[342269493,1731689448986,-500.0,9.899e-05,2]
[342269494,1731689448997,-500.0,9.899e-05,2]
[342269495,1731689449006,-500.0,9.899e-05,2]
[342269496,1731689449016,-500.0,9.899e-05,2]
[342269497,1731689449025,-500.0,9.899e-05,2]
[342269498,1731689449035,-500.0,9.899e-05,2]
[342269499,1731689449045,-4147.57,9.899e-05,2]
[342269500,1731689449054,-539.72,9.899e-05,2]
[342269501,1731689449064,-1073.35,9.899e-05,2]
[342269502,1731689449074,-500.0,9.899e-05,2]
[342269503,1731689449083,-500.0,9.899e-05,2]
[342269504,1731689449092,-1134.6,9.899e-05,2]
[342269505,1731689449102,-657.3,9.899e-05,2]
[342269506,1731689449111,-500.0,9.899e-05,2]
[342269507,1731689449121,-500.0,9.899e-05,2]
[342269508,1731689449130,-1795.89,9.899e-05,2]
[342269509,1731689449140,-732.63,9.899e-05,2]
[342269510,1731689449150,-500.0,9.899e-05,2]
[342269511,1731689449160,-500.0,9.899e-05,2]
[342269512,1731689449169,-500.0,9.899e-05,2]
[342269513,1731689449179,-731.3,9.899e-05,2]
[342269514,1731689449189,-1039.73,9.899e-05,2]
[342269515,1731689449199,-300.0,9.899e-05,2]
[342269516,1731689449209,-885.16,9.899e-05,2]
[342269517,1731689449219,-3296.11,9.899e-05,2]
[342269518,1731689449228,-1508.31,9.899e-05,2]
[342269519,1731689449238,-500.0,9.899e-05,2]
[342269520,1731689449248,-1007.62,9.899e-05,2]
[342269521,1731689449258,-500.0,9.899e-05,2]
[342269522,1731689449267,-546.77,9.899e-05,2]
[342269523,1731689449277,-1074.86,9.899e-05,2]
[342269524,1731689449286,-500.0,9.899e-05,2]
[342269525,1731689449295,-850.33,9.899e-05,2]
[342269526,1731689449305,-807.6,9.899e-05,2]
[342269527,1731689449315,-1028.8,9.899e-05,2]
[342269528,1731689449324,-1094.63,9.899e-05,2]
[342269529,1731689449334,-500.0,9.899e-05,2]
[342269530,1731689449343,-1302.15,9.899e-05,2]
[342269531,1731689449352,-6549.49,9.899e-05,2]
[342269532,1731689449362,-500.0,9.899e-05,2]
[342269533,1731689449371,-500.0,9.899e-05,2]
[342269534,1731689449381,-500.0,9.899e-05,2]
[342269535,1731689449391,-739.0,9.899e-05,2]
[342269536,1731689449403,-685.96,9.899e-05,2]
[342269537,1731689449414,-500.0,9.899e-05,2]
[342269538,1731689449424,-961.3,9.899e-05,2]
[342269539,1731689449437,-689.48,9.899e-05,2]
[342269540,1731689449448,-3817.3,9.899e-05,2]
[342269541,1731689449457,-500.0,9.899e-05,2]
[342269542,1731689449468,-1743.03,9.899e-05,2]
[342269543,1731689449478,-918.06,9.899e-05,2]
[342269544,1731689449488,-500.0,9.899e-05,2]
[342269545,1731689449498,-1238.1,9.899e-05,2]
[342269546,1731689449509,-500.0,9.899e-05,2]
[342269547,1731689449519,-4129.13,9.899e-05,2]
[342269548,1731689449530,-789.33,9.899e-05,2]
[342269549,1731689449540,-1799.66,9.899e-05,2]
[342269550,1731689449550,-615.54,9.899e-05,2]
[342269551,1731689449559,-500.0,9.899e-05,2]
[342269552,1731689449569,-500.0,9.899e-05,2]
[342269553,1731689449578,-2110.71,9.899e-05,2]
[342269554,1731689449588,-500.0,9.899e-05,2]
[342269555,1731689449598,-1876.66,9.899e-05,2]
[342269556,1731689449608,-2690.84,9.899e-05,2]
[342269557,1731689449618,-500.0,9.899e-05,2]
[342269558,1731689449627,-3451.01,9.899e-05,2]
[342269559,1731689449637,-1241.0,9.899e-05,2]
[342269560,1731689449647,-3474.87,9.899e-05,2]
[342269561,1731689449662,-1142.78,9.899e-05,2]
[342269562,1731689449671,-500.0,9.899e-05,2]
[342269563,1731689449681,-1216.54,9.899e-05,2]
[342269564,1731689449691,-758.56,9.899e-05,2]
[342269565,1731689449701,-500.0,9.899e-05,2]
[342269566,1731689449712,-500.0,9.899e-05,2]
[342269567,1731689449721,-500.0,9.899e-05,2]
[342269568,1731689449731,-500.0,9.899e-05,2]
[342269569,1731689449741,-732.84,9.899e-05,2]
[342269570,1731689449752,-672.4,9.899e-05,2]
[342269571,1731689449762,-500.0,9.899e-05,2]
[342269572,1731689449772,-1634.53,9.899e-05,2]
[342269573,1731689449781,-500.0,9.899e-05,2]
[342269574,1731689449792,-500.0,9.899e-05,2]
[342269575,1731689449802,-500.0,9.899e-05,2]
[342269576,1731689449813,-671.37,9.899e-05,2]
[342269577,1731689449823,-1590.47,9.899e-05,2]
[342269578,1731689449833,-542.62,9.899e-05,2]
[342269579,1731689449843,-500.0,9.899e-05,2]
[342269580,1731689449852,-500.0,9.899e-05,2]
[342269581,1731689449861,-725.09,9.899e-05,2]
[342269582,1731689449870,-500.0,9.899e-05,2]
[342269583,1731689449880,-500.0,9.899e-05,2]
[342269584,1731689449889,-500.0,9.899e-05,2]
[342269585,1731689449899,-1041.28,9.899e-05,2]
[342269586,1731689449915,-667.96,9.899e-05,2]
[342269587,1731689449928,-955.87,9.899e-05,2]
[342269588,1731689449939,-624.51,9.899e-05,2]
[342269589,1731689449950,-500.0,9.899e-05,2]
[342269590,1731689449960,-500.0,9.899e-05,2]
[342269591,1731689449970,-500.0,9.899e-05,2]
[342269592,1731689449979,-2730.36,9.899e-05,2]
[342269593,1731689449989,-185.31168074,9.899e-05,2]
[342269594,1731689449999,-500.0,9.899e-05,2]
[342269595,1731689450010,-635.23,9.899e-05,2]
[342269596,1731689450020,-500.0,9.899e-05,2]
[342269597,1731689450029,-609.9,9.899e-05,2]
[342269598,1731689450038,-500.0,9.899e-05,2]
[342269599,1731689450047,-1288.27,9.899e-05,2]
[342269600,1731689450056,-533.12,9.899e-05,2]
[342269601,1731689450066,-1043.11,9.899e-05,2]
[342269602,1731689450076,-500.0,9.899e-05,2]
[342269603,1731689450084,-1679.53,9.899e-05,2]
[342269604,1731689450091,-507.29,9.899e-05,2]
[342269605,1731689450098,-599.34,9.899e-05,2]
[342269606,1731689450105,-500.0,9.899e-05,2]
[342269607,1731689450112,-1576.75,9.899e-05,2]
[342269608,1731689450118,-500.0,9.899e-05,2]
[342269609,1731689450126,-500.0,9.899e-05,2]
[342269610,1731689450135,-500.0,9.899e-05,2]
[342269611,1731689450144,-500.0,9.899e-05,2]
[342269612,1731689450160,-591.13,9.899e-05,2]
[342269613,1731689450169,-500.0,9.899e-05,2]
[342269614,1731689450179,-500.0,9.899e-05,2]
[342269615,1731689450188,-540.82,9.899e-05,2]
[342269616,1731689450198,-1307.83,9.899e-05,2]
[342269617,1731689450208,-500.0,9.899e-05,2]
[342269618,1731689450218,-500.0,9.899e-05,2]
[342269619,1731689450228,-869.35,9.899e-05,2]
[342269620,1731689450238,-1484.06,9.899e-05,2]
[342269621,1731689450248,-500.0,9.899e-05,2]
[342269622,1731689450257,-500.0,9.899e-05,2]
[342269623,1731689450267,-500.0,9.899e-05,2]
[342269624,1731689450277,-1091.17,9.899e-05,2]
[342269625,1731689450287,-518.99,9.899e-05,2]
[342269626,1731689450297,-750.23,9.899e-05,2]
[342269627,1731689450307,-779.86,9.899e-05,2]
[342269628,1731689450317,-500.0,9.899e-05,2]
[342269629,1731689450327,-500.0,9.899e-05,2]
[342269630,1731689450337,-2655.88,9.899e-05,2]
[342269631,1731689450347,-1256.81,9.899e-05,2]
[342269632,1731689450357,-500.0,9.899e-05,2]
[342269633,1731689450366,-528.43,9.899e-05,2]
[342269634,1731689450376,-557.91,9.899e-05,2]
[342269635,1731689450386,-500.0,9.899e-05,2]
[342269636,1731689450396,-500.0,9.899e-05,2]
[342269637,1731689450413,-524.34,9.899e-05,2]
[342269638,1731689450423,-929.97,9.899e-05,2]
[342269639,1731689450432,-1001.53,9.899e-05,2]
[342269640,1731689450445,-1130.84,9.899e-05,2]
[342269641,1731689450454,-3477.1,9.899e-05,2]
[342269642,1731689450464,-819.18,9.899e-05,2]
[342269643,1731689450473,-500.0,9.899e-05,2]
[342269644,1731689450484,-500.0,9.899e-05,2]
[342269645,1731689450493,-1099.5,9.899e-05,2]
[342269646,1731689450503,-1777.55,9.899e-05,2]
[342269647,1731689450512,-1107.86,9.899e-05,2]
[342269648,1731689450523,-1427.91,9.899e-05,2]
[342269649,1731689450534,-500.0,9.899e-05,2]
[342269650,1731689450543,-2363.8,9.899e-05,2]
[342269651,1731689450552,-617.46,9.899e-05,2]
[342269652,1731689450561,-500.0,9.899e-05,2]
[342269653,1731689450571,-500.0,9.899e-05,2]
[342269654,1731689450580,-500.0,9.899e-05,2]
[342269655,1731689450589,-1691.28,9.899e-05,2]
[342269656,1731689450599,-627.46,9.899e-05,2]
[342269657,1731689450608,-1030.09,9.899e-05,2]
[342269658,1731689450618,-500.0,9.899e-05,2]
[342269659,1731689450628,-697.4,9.899e-05,2]
[342269660,1731689450637,-643.21,9.899e-05,2]
[342269661,1731689450646,-898.34,9.899e-05,2]
[342269662,1731689450661,-1823.84,9.899e-05,2]
[342269663,1731689450670,-500.0,9.899e-05,2]
[342269664,1731689450679,-500.0,9.899e-05,2]
[342269665,1731689450688,-2618.08,9.899e-05,2]
[342269666,1731689450698,-500.0,9.899e-05,2]
[342269667,1731689450707,-528.45,9.899e-05,2]
[342269668,1731689450717,-500.0,9.899e-05,2]
[342269669,1731689450727,-500.0,9.899e-05,2]
[342269670,1731689450737,-790.98,9.899e-05,2]
[342269671,1731689450746,-900.3,9.899e-05,2]
[342269672,1731689450755,-566.46,9.899e-05,2]
[342269673,1731689450765,-1332.96,9.899e-05,2]
[342269674,1731689450774,-500.0,9.899e-05,2]